[Event "*** Titled Tuesday Blitz"]
[Site "Chess.com"]
[Date "2018.04.03"]
[Round "5"]
[White "jncool68"]
[Black "lachesisQ"]
[Result "0-1"]
[WhiteElo "2531"]
[BlackElo "2912"]
[TimeControl "180+2"]
[EndTime "14:06:10 PDT"]
[Termination "lachesisQ won by resignation"]

1. e4 {[%clk 0:03:01.9]} 1... c5 {[%clk 0:02:44.5]} 2. Nf3 {[%clk 0:03:02.5]}
2... d6 {[%clk 0:02:45.6]} 3. d4 {[%clk 0:03:03.6]} 3... cxd4 {[%clk 0:02:47.5]}
4. Nxd4 {[%clk 0:03:04.9]} 4... Nf6 {[%clk 0:02:49.3]} 5. Nc3 {[%clk 0:03:06]}
5... a6 {[%clk 0:02:51.1]} 6. g3 {[%clk 0:03:06.7]} 6... e5 {[%clk 0:02:51.4]}
7. Nf3 {[%clk 0:03:07.6]} 7... Be7 {[%clk 0:02:53.3]} 8. Nh4 {[%clk 0:03:07.7]}
8... O-O {[%clk 0:02:53]} 9. Bg2 {[%clk 0:03:07.3]} 9... b5 {[%clk 0:02:52.9]}
10. O-O {[%clk 0:03:01.7]} 10... g6 {[%clk 0:02:39.8]} 11. Bh6 {[%clk
0:03:01.3]} 11... Re8 {[%clk 0:02:41.1]} 12. a3 {[%clk 0:02:58.1]} 12... Ng4
{[%clk 0:02:29.4]} 13. Bd2 {[%clk 0:02:39.3]} 13... Bxh4 {[%clk 0:02:29.6]} 14.
gxh4 {[%clk 0:02:40.8]} 14... Qxh4 {[%clk 0:02:31.3]} 15. h3 {[%clk 0:02:41.4]}
15... Nf6 {[%clk 0:02:32.9]} 16. Qf3 {[%clk 0:02:41.1]} 16... Nc6 {[%clk
0:02:30.9]} 17. Ne2 {[%clk 0:02:40.2]} 17... Nh5 {[%clk 0:02:23.3]} 18. Rad1
{[%clk 0:02:36.2]} 18... Be6 {[%clk 0:02:23.4]} 19. b3 {[%clk 0:02:27.6]} 19...
Rad8 {[%clk 0:02:16.8]} 20. Be3 {[%clk 0:02:26.9]} 20... Rd7 {[%clk 0:02:06.9]}
21. Rd3 {[%clk 0:02:27.2]} 21... Rc8 {[%clk 0:01:20.6]} 22. Rfd1 {[%clk
0:02:23.2]} 22... Qd8 {[%clk 0:01:22.2]} 23. Ng3 {[%clk 0:02:13.1]} 23... Nxg3
{[%clk 0:01:23]} 24. Qxg3 {[%clk 0:02:12.6]} 24... Ne7 {[%clk 0:01:23.6]} 25.
Bg5 {[%clk 0:02:13]} 25... Rxc2 {[%clk 0:01:10.5]} 26. Qh4 {[%clk 0:02:13.2]}
26... h5 {[%clk 0:00:58.8]} 27. Bf6 {[%clk 0:02:13.4]} 27... Kh7 {[%clk
0:00:57.1]} 28. Bf3 {[%clk 0:02:04.9]} 28... Qf8 {[%clk 0:00:58.3]} 29. Rxd6
{[%clk 0:02:02.3]} 29... Rxd6 {[%clk 0:00:58.7]} 30. Rxd6 {[%clk 0:02:03]} 30...
Ng8 {[%clk 0:00:58.1]} 31. Rd8 {[%clk 0:01:55.5]} 31... Qh6 {[%clk 0:00:57.1]}
32. Bg5 {[%clk 0:01:52.7]} 32... Qg7 {[%clk 0:00:55.4]} 33. b4 {[%clk 0:00:58]}
33... Rc3 {[%clk 0:00:56.3]} 34. Be3 {[%clk 0:00:58.2]} 34... Rxa3 {[%clk
0:00:55.1]} 35. Kh2 {[%clk 0:00:50.8]} 35... Qf6 {[%clk 0:00:52.3]} 36. Qxf6
{[%clk 0:00:32]} 36... Nxf6 {[%clk 0:00:54.2]} 37. Be2 {[%clk 0:00:32.1]} 37...
Nxe4 {[%clk 0:00:54.3]} 38. Bb6 {[%clk 0:00:25.5]} 38... Ra2 {[%clk 0:00:53.2]}
39. Bd1 {[%clk 0:00:20.7]} 39... Nxf2 {[%clk 0:00:53.2]} 40. Kg3 {[%clk
0:00:20.1]} 40... Ne4+ {[%clk 0:00:50.2]} 41. Kf3 {[%clk 0:00:20.7]} 41... Ng5+
{[%clk 0:00:50.4]} 42. Ke3 {[%clk 0:00:21.7]} 42... Nxh3 {[%clk 0:00:49.9]} 43.
Bc7 {[%clk 0:00:22.9]} 43... Ra3+ {[%clk 0:00:49.9]} 44. Ke4 {[%clk 0:00:23.4]}
44... f6 {[%clk 0:00:46.4]} 0-1

[Event "*** Titled Tuesday Blitz"]
[Site "Chess.com"]
[Date "2018.04.03"]
[Round "5"]
[White "Blitzstream"]
[Black "ristingho"]
[Result "1-0"]
[WhiteElo "2445"]
[BlackElo "2292"]
[TimeControl "180+2"]
[EndTime "14:06:14 PDT"]
[Termination "Blitzstream won by resignation"]

1. e4 {[%clk 0:03:01.9]} 1... c6 {[%clk 0:03:00.3]} 2. Nc3 {[%clk 0:03:01.5]}
2... d5 {[%clk 0:03:00.4]} 3. Nf3 {[%clk 0:03:02.9]} 3... Nf6 {[%clk 0:03:01.6]}
4. e5 {[%clk 0:03:00.8]} 4... Ne4 {[%clk 0:03:02.5]} 5. Ne2 {[%clk 0:02:59.5]}
5... Qb6 {[%clk 0:03:03.2]} 6. d4 {[%clk 0:02:59.7]} 6... e6 {[%clk 0:03:04.4]}
7. c3 {[%clk 0:02:53.8]} 7... c5 {[%clk 0:03:01.3]} 8. Ng3 {[%clk 0:02:28.6]}
8... Nc6 {[%clk 0:02:58.4]} 9. Bd3 {[%clk 0:02:18.4]} 9... Nxg3 {[%clk
0:02:59.1]} 10. hxg3 {[%clk 0:02:18.1]} 10... Bd7 {[%clk 0:03:00]} 11. dxc5
{[%clk 0:02:05.1]} 11... Bxc5 {[%clk 0:02:57.4]} 12. O-O {[%clk 0:02:06.6]}
12... a5 {[%clk 0:02:56.3]} 13. Qe2 {[%clk 0:02:06.4]} 13... h6 {[%clk
0:02:54.6]} 14. g4 {[%clk 0:02:00.3]} 14... a4 {[%clk 0:02:48]} 15. Bf4 {[%clk
0:01:57.8]} 15... Ne7 {[%clk 0:02:19.1]} 16. Bg3 {[%clk 0:01:53.2]} 16... Ra5
{[%clk 0:02:07.5]} 17. b4 {[%clk 0:01:39.2]} 17... axb3 {[%clk 0:02:07.7]} 18.
axb3 {[%clk 0:01:41.1]} 18... Rxa1 {[%clk 0:02:06.3]} 19. Rxa1 {[%clk 0:01:43]}
19... Qxb3 {[%clk 0:02:02.4]} 20. c4 {[%clk 0:01:07.1]} 20... O-O {[%clk
0:01:28.8]} 21. cxd5 {[%clk 0:00:55.9]} 21... exd5 {[%clk 0:01:12.7]} 22. Rb1
{[%clk 0:00:45.8]} 22... Qc3 {[%clk 0:01:06.1]} 23. g5 {[%clk 0:00:45.4]} 23...
Bf5 {[%clk 0:00:57]} 24. Bxf5 {[%clk 0:00:40.4]} 24... Nxf5 {[%clk 0:00:58.9]}
25. Bf4 {[%clk 0:00:36.8]} 25... Nd4 {[%clk 0:00:30.8]} 26. Nxd4 {[%clk
0:00:36.6]} 26... Qxd4 {[%clk 0:00:32.7]} 27. g3 {[%clk 0:00:14]} 27... hxg5
{[%clk 0:00:30.6]} 28. Bxg5 {[%clk 0:00:12.4]} 28... b6 {[%clk 0:00:26.9]} 29.
Rd1 {[%clk 0:00:13.1]} 29... Qc3 {[%clk 0:00:20.8]} 30. Kg2 {[%clk 0:00:12.6]}
30... d4 {[%clk 0:00:17.2]} 31. Rh1 {[%clk 0:00:11.7]} 31... g6 {[%clk
0:00:12.1]} 32. Bf6 {[%clk 0:00:12.2]} 1-0

[Event "*** Titled Tuesday Blitz"]
[Site "Chess.com"]
[Date "2018.04.03"]
[Round "5"]
[White "Jospem"]
[Black "amatatanav"]
[Result "1-0"]
[WhiteElo "2735"]
[BlackElo "2430"]
[TimeControl "180+2"]
[EndTime "14:06:15 PDT"]
[Termination "Jospem won by resignation"]

1. e4 {[%clk 0:02:57.5]} 1... c5 {[%clk 0:03:00.9]} 2. Nf3 {[%clk 0:02:58.6]}
2... Nc6 {[%clk 0:03:02.3]} 3. d4 {[%clk 0:02:58.5]} 3... cxd4 {[%clk
0:03:04.2]} 4. Nxd4 {[%clk 0:03:00.3]} 4... g6 {[%clk 0:03:05.2]} 5. c4 {[%clk
0:03:00.8]} 5... Nf6 {[%clk 0:03:05.8]} 6. Nc3 {[%clk 0:03:01.2]} 6... d6 {[%clk
0:03:05.9]} 7. f3 {[%clk 0:03:01.3]} 7... Nxd4 {[%clk 0:03:05.7]} 8. Qxd4 {[%clk
0:03:03.2]} 8... Bg7 {[%clk 0:03:07.2]} 9. Be3 {[%clk 0:03:03.4]} 9... O-O
{[%clk 0:03:08.4]} 10. Qd2 {[%clk 0:03:04.9]} 10... Be6 {[%clk 0:03:07.2]} 11.
Rc1 {[%clk 0:03:02.3]} 11... a5 {[%clk 0:03:02.5]} 12. b3 {[%clk 0:03:03.1]}
12... Nd7 {[%clk 0:02:15.3]} 13. Be2 {[%clk 0:02:59.6]} 13... Nb6 {[%clk
0:01:41.3]} 14. Nb5 {[%clk 0:02:51.6]} 14... a4 {[%clk 0:01:20.5]} 15. b4 {[%clk
0:02:45.9]} 15... Rc8 {[%clk 0:00:51.7]} 16. Na3 {[%clk 0:02:45.7]} 16... f5
{[%clk 0:00:45.3]} 17. exf5 {[%clk 0:02:45.2]} 17... gxf5 {[%clk 0:00:46.7]} 18.
O-O {[%clk 0:02:43.9]} 18... d5 {[%clk 0:00:45.9]} 19. c5 {[%clk 0:02:39.3]}
19... d4 {[%clk 0:00:46.9]} 20. Bf2 {[%clk 0:02:39.6]} 20... Nd5 {[%clk
0:00:42.4]} 21. Bc4 {[%clk 0:02:39]} 21... Nc7 {[%clk 0:00:33]} 22. Rfd1 {[%clk
0:02:34.2]} 22... Bxc4 {[%clk 0:00:20.8]} 23. Nxc4 {[%clk 0:02:36.1]} 23... Nd5
{[%clk 0:00:21.5]} 24. Bxd4 {[%clk 0:02:31.2]} 24... Bxd4+ {[%clk 0:00:23.4]}
25. Qxd4 {[%clk 0:02:32.6]} 25... Nxb4 {[%clk 0:00:23.7]} 26. Nd6 {[%clk
0:02:17.2]} 26... exd6 {[%clk 0:00:21.5]} 27. Qxb4 {[%clk 0:02:15.9]} 27... Qc7
{[%clk 0:00:09.6]} 28. Rxd6 {[%clk 0:02:03.7]} 28... Qxd6 {[%clk 0:00:09.4]} 29.
Qc4+ {[%clk 0:02:02.5]} 29... Rf7 {[%clk 0:00:05.8]} 30. cxd6 {[%clk 0:02:04.4]}
30... Rxc4 {[%clk 0:00:06.9]} 31. Rxc4 {[%clk 0:02:06.3]} 31... b5 {[%clk
0:00:07.2]} 32. Rc8+ {[%clk 0:02:04.8]} 32... Kg7 {[%clk 0:00:08.2]} 33. Rc5
{[%clk 0:01:49.4]} 33... b4 {[%clk 0:00:09.3]} 34. Rb5 {[%clk 0:01:49.1]} 34...
b3 {[%clk 0:00:08.9]} 35. axb3 {[%clk 0:01:49.8]} 35... axb3 {[%clk 0:00:10.8]}
36. Rxb3 {[%clk 0:01:51.2]} 36... Rd7 {[%clk 0:00:09.7]} 37. Rd3 {[%clk
0:01:52.6]} 37... Kf6 {[%clk 0:00:10.9]} 38. Kf2 {[%clk 0:01:54.2]} 38... Ke5
{[%clk 0:00:11.8]} 39. Kg3 {[%clk 0:01:55]} 39... Rxd6 {[%clk 0:00:10.8]} 40.
Rxd6 {[%clk 0:01:55.4]} 40... Kxd6 {[%clk 0:00:12.7]} 41. Kf4 {[%clk 0:01:56.8]}
41... Ke6 {[%clk 0:00:13.9]} 42. Kg5 {[%clk 0:01:58.5]} 42... Ke5 {[%clk
0:00:15.2]} 43. g3 {[%clk 0:01:58.1]} 43... f4 {[%clk 0:00:12.6]} 44. gxf4+
{[%clk 0:01:56.9]} 44... Ke6 {[%clk 0:00:13.8]} 45. Kh6 {[%clk 0:01:27.3]} 45...
Kf5 {[%clk 0:00:12]} 46. Kxh7 {[%clk 0:01:28.6]} 46... Kxf4 {[%clk 0:00:13]} 47.
h4 {[%clk 0:01:30.2]} 47... Kf5 {[%clk 0:00:03.1]} 48. h5 {[%clk 0:01:28.6]}
48... Kg5 {[%clk 0:00:03.4]} 49. h6 {[%clk 0:01:23]} 49... Kf6 {[%clk
0:00:04.1]} 50. Kg8 {[%clk 0:01:24]} 50... Kg6 {[%clk 0:00:03]} 51. h7 {[%clk
0:01:25.9]} 1-0

[Event "*** Titled Tuesday Blitz"]
[Site "Chess.com"]
[Date "2018.04.03"]
[Round "5"]
[White "Man-Chuk"]
[Black "Divertissement"]
[Result "1-0"]
[WhiteElo "2661"]
[BlackElo "2446"]
[TimeControl "180+2"]
[EndTime "14:06:17 PDT"]
[Termination "Man-Chuk won by checkmate"]

1. e4 {[%clk 0:03:01.9]} 1... c5 {[%clk 0:02:57.2]} 2. Nf3 {[%clk 0:03:02.3]}
2... Nc6 {[%clk 0:02:53.1]} 3. Bb5 {[%clk 0:03:00.1]} 3... d6 {[%clk 0:02:54.3]}
4. O-O {[%clk 0:02:58.4]} 4... Bd7 {[%clk 0:02:55.3]} 5. Re1 {[%clk 0:02:58.5]}
5... Nf6 {[%clk 0:02:55.2]} 6. c3 {[%clk 0:02:58.3]} 6... a6 {[%clk 0:02:51.3]}
7. Bf1 {[%clk 0:02:58.8]} 7... Bg4 {[%clk 0:02:46.1]} 8. h3 {[%clk 0:02:53.2]}
8... Bxf3 {[%clk 0:02:42.8]} 9. Qxf3 {[%clk 0:02:55.1]} 9... g6 {[%clk
0:02:44.4]} 10. d3 {[%clk 0:02:52.2]} 10... Bg7 {[%clk 0:02:45.5]} 11. Qd1
{[%clk 0:02:49.7]} 11... O-O {[%clk 0:02:44]} 12. Be3 {[%clk 0:02:39.2]} 12...
b5 {[%clk 0:02:35]} 13. Nd2 {[%clk 0:02:39.1]} 13... Nd7 {[%clk 0:02:07.8]} 14.
Nf3 {[%clk 0:02:20.6]} 14... b4 {[%clk 0:02:04.3]} 15. d4 {[%clk 0:02:21.1]}
15... bxc3 {[%clk 0:02:01.7]} 16. bxc3 {[%clk 0:02:23]} 16... Qa5 {[%clk
0:01:44.1]} 17. Bd2 {[%clk 0:01:58.5]} 17... Rab8 {[%clk 0:01:30]} 18. Bc4
{[%clk 0:01:44.4]} 18... Qa3 {[%clk 0:01:07.7]} 19. Bb3 {[%clk 0:01:41.2]} 19...
cxd4 {[%clk 0:01:01.2]} 20. Rc1 {[%clk 0:01:22.9]} 20... Nc5 {[%clk 0:00:47.3]}
21. cxd4 {[%clk 0:01:14.1]} 21... Nxd4 {[%clk 0:00:38.8]} 22. Nxd4 {[%clk
0:00:54.4]} 22... Bxd4 {[%clk 0:00:40.7]} 23. Bh6 {[%clk 0:00:49.3]} 23... Bg7
{[%clk 0:00:38.4]} 24. Bxg7 {[%clk 0:00:50.4]} 24... Kxg7 {[%clk 0:00:40.3]} 25.
Qd4+ {[%clk 0:00:50.9]} 25... f6 {[%clk 0:00:37.2]} 26. Bc4 {[%clk 0:00:50.2]}
26... Rb2 {[%clk 0:00:32.1]} 27. Rcd1 {[%clk 0:00:23.6]} 27... a5 {[%clk
0:00:29.8]} 28. e5 {[%clk 0:00:22.6]} 28... fxe5 {[%clk 0:00:16.2]} 29. Rxe5
{[%clk 0:00:24.5]} 29... dxe5 {[%clk 0:00:17]} 30. Qxe5+ {[%clk 0:00:26.4]}
30... Kh6 {[%clk 0:00:18]} 31. Rd4 {[%clk 0:00:20.3]} 31... Rb1+ {[%clk
0:00:17.4]} 32. Kh2 {[%clk 0:00:21]} 32... Rf5 {[%clk 0:00:06.4]} 33. Qxe7
{[%clk 0:00:22.1]} 33... Qc1 {[%clk 0:00:04]} 34. Rh4+ {[%clk 0:00:19.3]} 34...
Rh5 {[%clk 0:00:05.6]} 35. Qf8+ {[%clk 0:00:20.5]} 35... Kg5 {[%clk 0:00:07.1]}
36. Qxc5+ {[%clk 0:00:21.5]} 36... Kh6 {[%clk 0:00:08.1]} 37. Qf8+ {[%clk
0:00:22.4]} 37... Kg5 {[%clk 0:00:09.5]} 38. Rg4# {[%clk 0:00:23.8]} 1-0

[Event "*** Titled Tuesday Blitz"]
[Site "Chess.com"]
[Date "2018.04.03"]
[Round "5"]
[White "ajkom197"]
[Black "Kislov_Oleg"]
[Result "1-0"]
[WhiteElo "2409"]
[BlackElo "2247"]
[TimeControl "180+2"]
[EndTime "14:06:21 PDT"]
[Termination "ajkom197 won by checkmate"]

1. d4 {[%clk 0:03:01.9]} 1... d5 {[%clk 0:02:59.8]} 2. Bf4 {[%clk 0:03:00.8]}
2... Nf6 {[%clk 0:03:00.4]} 3. e3 {[%clk 0:03:01.5]} 3... e6 {[%clk 0:03:01.9]}
4. Nd2 {[%clk 0:03:00.6]} 4... c5 {[%clk 0:03:03.3]} 5. c3 {[%clk 0:03:00.4]}
5... Nc6 {[%clk 0:03:04.4]} 6. Ngf3 {[%clk 0:03:00.6]} 6... Bd6 {[%clk
0:03:05.8]} 7. Bg3 {[%clk 0:02:59.6]} 7... O-O {[%clk 0:03:07.3]} 8. Bd3 {[%clk
0:03:00]} 8... b6 {[%clk 0:03:07.8]} 9. e4 {[%clk 0:03:00.9]} 9... Be7 {[%clk
0:03:07]} 10. e5 {[%clk 0:03:01.8]} 10... Nh5 {[%clk 0:03:07.9]} 11. Ng5 {[%clk
0:03:02.4]} 11... Bxg5 {[%clk 0:03:01.6]} 12. Qxh5 {[%clk 0:03:01.7]} 12... g6
{[%clk 0:02:48]} 13. Qe2 {[%clk 0:02:58.1]} 13... cxd4 {[%clk 0:02:45.3]} 14. h4
{[%clk 0:02:57.7]} 14... Bh6 {[%clk 0:02:40.6]} 15. h5 {[%clk 0:02:56.9]} 15...
dxc3 {[%clk 0:02:35.5]} 16. bxc3 {[%clk 0:02:56.5]} 16... Bg7 {[%clk 0:02:18]}
17. f4 {[%clk 0:02:18.3]} 17... g5 {[%clk 0:01:38.8]} 18. Nf3 {[%clk 0:02:04]}
18... g4 {[%clk 0:01:25.9]} 19. Bxh7+ {[%clk 0:01:43.3]} 19... Kxh7 {[%clk
0:01:24]} 20. Ng5+ {[%clk 0:01:43.3]} 20... Kg8 {[%clk 0:01:21]} 21. Qd3 {[%clk
0:01:43.8]} 21... f5 {[%clk 0:01:21.9]} 22. exf6 {[%clk 0:01:37.2]} 22... Rxf6
{[%clk 0:01:22.1]} 23. Qh7+ {[%clk 0:01:34.7]} 23... Kf8 {[%clk 0:01:22.8]} 24.
h6 {[%clk 0:01:34.9]} 24... Qe7 {[%clk 0:01:10.2]} 25. O-O-O {[%clk 0:01:06]}
25... a5 {[%clk 0:00:55.9]} 26. hxg7+ {[%clk 0:01:02.4]} 26... Qxg7 {[%clk
0:00:55.7]} 27. Qc2 {[%clk 0:00:52.3]} 27... Rh6 {[%clk 0:00:44.2]} 28. c4
{[%clk 0:00:34.9]} 28... Nb4 {[%clk 0:00:41.4]} 29. Qb2 {[%clk 0:00:24.8]} 29...
Nd3+ {[%clk 0:00:36.3]} 30. Rxd3 {[%clk 0:00:24.7]} 30... Rxh1+ {[%clk 0:00:37]}
31. Kc2 {[%clk 0:00:24.9]} 31... Qxb2+ {[%clk 0:00:36.9]} 32. Kxb2 {[%clk
0:00:26.8]} 32... dxc4 {[%clk 0:00:21.1]} 33. Rd8+ {[%clk 0:00:25.7]} 33... Ke7
{[%clk 0:00:21.9]} 34. Rg8 {[%clk 0:00:22.9]} 34... Bb7 {[%clk 0:00:22.2]} 35.
Rg7+ {[%clk 0:00:23.2]} 35... Kd6 {[%clk 0:00:23.4]} 36. Rxb7 {[%clk 0:00:20.6]}
36... Kc6 {[%clk 0:00:24.5]} 37. Re7 {[%clk 0:00:21.5]} 37... b5 {[%clk
0:00:24.8]} 38. Rxe6+ {[%clk 0:00:22.2]} 38... Kd5 {[%clk 0:00:25.1]} 39. f5
{[%clk 0:00:23.4]} 39... Rg1 {[%clk 0:00:24.2]} 40. Rd6+ {[%clk 0:00:24.1]}
40... Kc5 {[%clk 0:00:23]} 41. Ne4+ {[%clk 0:00:22.4]} 41... Kb4 {[%clk
0:00:24.1]} 42. a3+ {[%clk 0:00:23.1]} 42... Ka4 {[%clk 0:00:25.3]} 43. Nc3#
{[%clk 0:00:24.2]} 1-0

[Event "*** Titled Tuesday Blitz"]
[Site "Chess.com"]
[Date "2018.04.03"]
[Round "5"]
[White "51616516516"]
[Black "Alopekos"]
[Result "0-1"]
[WhiteElo "2124"]
[BlackElo "2317"]
[TimeControl "180+2"]
[EndTime "14:06:25 PDT"]
[Termination "Alopekos won on time"]

1. d4 {[%clk 0:03:01.3]} 1... Nf6 {[%clk 0:03:00.6]} 2. c4 {[%clk 0:03:02]} 2...
e6 {[%clk 0:03:01.6]} 3. Nc3 {[%clk 0:03:02.3]} 3... d5 {[%clk 0:03:01.3]} 4.
cxd5 {[%clk 0:03:02.5]} 4... exd5 {[%clk 0:03:00.4]} 5. Bg5 {[%clk 0:03:03.5]}
5... Be7 {[%clk 0:03:00.9]} 6. e3 {[%clk 0:03:04.3]} 6... O-O {[%clk 0:03:02.3]}
7. Bd3 {[%clk 0:03:04.1]} 7... c5 {[%clk 0:03:03.1]} 8. Nf3 {[%clk 0:02:59.6]}
8... cxd4 {[%clk 0:03:02.7]} 9. Nxd4 {[%clk 0:02:59.2]} 9... Nc6 {[%clk
0:03:03.9]} 10. Nf3 {[%clk 0:02:33.9]} 10... h6 {[%clk 0:03:01.1]} 11. Bh4
{[%clk 0:02:27.9]} 11... Be6 {[%clk 0:03:01.3]} 12. O-O {[%clk 0:02:28.3]} 12...
Rc8 {[%clk 0:02:46.5]} 13. a3 {[%clk 0:02:27.1]} 13... Qd7 {[%clk 0:02:15.2]}
14. Bc2 {[%clk 0:02:20.6]} 14... Rfd8 {[%clk 0:02:00.3]} 15. Qd3 {[%clk
0:02:20.2]} 15... g6 {[%clk 0:01:56.7]} 16. Ba4 {[%clk 0:01:56.9]} 16... Ne4
{[%clk 0:00:53.1]} 17. Nxe4 {[%clk 0:01:42.1]} 17... Bf5 {[%clk 0:00:53.3]} 18.
Bxe7 {[%clk 0:01:27.2]} 18... Qxe7 {[%clk 0:00:50.7]} 19. Bxc6 {[%clk
0:00:31.5]} 19... dxe4 {[%clk 0:00:31.2]} 20. Qb3 {[%clk 0:00:31]} 20... bxc6
{[%clk 0:00:06.9]} 21. Nd4 {[%clk 0:00:28.1]} 21... Bg4 {[%clk 0:00:08.1]} 22.
Rac1 {[%clk 0:00:22.7]} 22... c5 {[%clk 0:00:08.6]} 23. Nb5 {[%clk 0:00:17]}
23... Qg5 {[%clk 0:00:07.4]} 24. Kh1 {[%clk 0:00:17.4]} 24... Rd2 {[%clk
0:00:03.6]} 25. Qc3 {[%clk 0:00:12.2]} 25... Rcd8 {[%clk 0:00:04.4]} 26. Nd4
{[%clk 0:00:08.9]} 26... Rd3 {[%clk 0:00:03.3]} 27. Qxc5 {[%clk 0:00:07.1]}
27... Qh4 {[%clk 0:00:04.1]} 28. Qc7 {[%clk 0:00:04.3]} 28... Rf8 {[%clk
0:00:03.4]} 29. Qg3 {[%clk 0:00:04.8]} 29... Qh5 {[%clk 0:00:04]} 30. h3 {[%clk
0:00:04.5]} 30... Bd7 {[%clk 0:00:05.1]} 31. Rc7 {[%clk 0:00:03.7]} 31... Qd5
{[%clk 0:00:05.3]} 32. Rfc1 {[%clk 0:00:03.4]} 32... Ba4 {[%clk 0:00:03.5]} 33.
Rxa7 {[%clk 0:00:02.6]} 33... Bb3 {[%clk 0:00:03.8]} 0-1

[Event "*** Titled Tuesday Blitz"]
[Site "Chess.com"]
[Date "2018.04.03"]
[Round "5"]
[White "Albertu"]
[Black "1random"]
[Result "0-1"]
[WhiteElo "2236"]
[BlackElo "2193"]
[TimeControl "180+2"]
[EndTime "14:06:26 PDT"]
[Termination "1random won by resignation"]

1. e4 {[%clk 0:03:01.9]} 1... d5 {[%clk 0:02:58.6]} 2. exd5 {[%clk 0:03:01.6]}
2... Nf6 {[%clk 0:03:00]} 3. d4 {[%clk 0:03:01.3]} 3... Bg4 {[%clk 0:02:54.7]}
4. Bb5+ {[%clk 0:03:02]} 4... Nbd7 {[%clk 0:02:50.3]} 5. Be2 {[%clk 0:03:02.9]}
5... Bxe2 {[%clk 0:02:50.8]} 6. Qxe2 {[%clk 0:03:04.8]} 6... Nxd5 {[%clk
0:02:52.4]} 7. Nf3 {[%clk 0:03:06.1]} 7... e6 {[%clk 0:02:53.8]} 8. O-O {[%clk
0:03:06.9]} 8... Bd6 {[%clk 0:02:55.2]} 9. c4 {[%clk 0:03:07.2]} 9... N5f6
{[%clk 0:02:56.5]} 10. d5 {[%clk 0:02:33.9]} 10... O-O {[%clk 0:02:56.2]} 11.
dxe6 {[%clk 0:02:33.5]} 11... fxe6 {[%clk 0:02:49.5]} 12. Qxe6+ {[%clk
0:02:35.4]} 12... Kh8 {[%clk 0:02:50.8]} 13. Nc3 {[%clk 0:02:30.2]} 13... Nc5
{[%clk 0:02:47.6]} 14. Qh3 {[%clk 0:02:29.2]} 14... Nd3 {[%clk 0:02:33.5]} 15.
Ng5 {[%clk 0:02:26.9]} 15... Nxc1 {[%clk 0:02:02.4]} 16. Ne6 {[%clk 0:02:24.2]}
16... Qc8 {[%clk 0:01:38.8]} 17. Nxf8 {[%clk 0:02:23.8]} 17... Qxh3 {[%clk
0:01:38.5]} 18. gxh3 {[%clk 0:02:25.7]} 18... Nd3 {[%clk 0:01:37.3]} 19. Ne6
{[%clk 0:02:26.2]} 19... Nxb2 {[%clk 0:01:37.6]} 20. Rab1 {[%clk 0:02:19]} 20...
Nxc4 {[%clk 0:01:36.2]} 21. Rxb7 {[%clk 0:02:20.1]} 21... Na5 {[%clk 0:01:25.4]}
22. Rb5 {[%clk 0:02:20]} 22... Nc6 {[%clk 0:01:22.8]} 23. Nxc7 {[%clk
0:02:16.1]} 23... Bxc7 {[%clk 0:00:59.9]} 24. Rc5 {[%clk 0:02:15.7]} 24... Rc8
{[%clk 0:01:01.5]} 25. Nb5 {[%clk 0:01:10.8]} 25... Bb6 {[%clk 0:00:44]} 26. Rc2
{[%clk 0:00:24.2]} 26... Ne7 {[%clk 0:00:41.3]} 27. Re2 {[%clk 0:00:24.9]} 27...
Nf5 {[%clk 0:00:36.4]} 28. Re5 {[%clk 0:00:24.9]} 28... Nh4 {[%clk 0:00:33.5]}
29. Re7 {[%clk 0:00:19.8]} 29... Ng6 {[%clk 0:00:30.7]} 30. Rb7 {[%clk
0:00:20.4]} 30... Ra8 {[%clk 0:00:22]} 31. Re1 {[%clk 0:00:16.8]} 31... Kg8
{[%clk 0:00:17.3]} 32. Kg2 {[%clk 0:00:16.5]} 32... Nf4+ {[%clk 0:00:17.8]} 33.
Kg3 {[%clk 0:00:16.7]} 33... N4d5 {[%clk 0:00:16.6]} 34. f3 {[%clk 0:00:13.2]}
34... a6 {[%clk 0:00:17.6]} 35. Nd6 {[%clk 0:00:07.5]} 35... Bc7 {[%clk
0:00:18]} 36. Re6 {[%clk 0:00:05.6]} 36... Rd8 {[%clk 0:00:18.5]} 37. Rxc7
{[%clk 0:00:04]} 37... Nxc7 {[%clk 0:00:19.4]} 38. Rxf6 {[%clk 0:00:04.1]} 38...
gxf6 {[%clk 0:00:20.1]} 0-1